{"text_format":"1","workbook":"xlsx","n_sheets":1,"sheets":["Карт КОР"],"not_rendered":{"charts":0,"images":2,"macros":1,"external_links":0,"defined_names":17,"comments":0,"pivot_tables":0},"unopened":[],"bounds":{"document_bytes":16777216,"sheet_cells":100000,"rows_first":2000,"rows_last":500,"rows_between":2000,"halvings":0,"cell_chars":16384,"cell_head_chars":4096},"cells_cut":0,"cells_raw":0,"read":"whole","date_system":"1900"}

{"sheet":"Карт КОР","index":0,"n_rows":34,"n_cols":12,"rows_kept":34,"cut":false,"hidden":false,"merged":[]}
[]
["Картофель прод.позд.",null,null,null,"первая страница",1,null,null,null,null,null,{"$f":"ROUNDUP(K2/F$11,0)","v":0}]
["ТР ТС 021/2011; ТР ТС 022/2011",null,null,null,"последняя страница",100,null,null,null,null,null,{"$f":"ROUNDUP(K3/F$11,0)","v":0}]
["ГОСТ Р 51808-2013",null,null,null,null,null,null,null,null,null,null,0]
["Страна;изготовитель: Россия",null,null,null,null,null,null,null,null,null,null,0]
["АО \"Фортуна\"",null,null,null,"Количество ДОП этикеток",0,null,null,null,null,null,0]
[null,null,null,null,null,null,null,null,{"$f":"yearApple","v":"15.11.2019"},null,null,0]
["Дата выработки: Урожай 2017 г.",null,null,null,{"$f":"\"Печать количество этикеток  \"  & $F$3","v":"Печать количество этикеток  100"},null,null,null,null,null,null,0]
[{"$f":"\"Дата фасовки: \"&myDate","v":"Дата фасовки: 15.11.2017"},null,null,null,null,null,null,null,null,null,null,0]
["Условия хранения: t от 3°до 6°С",null,null,null,null,null,null,null,null,null,null,0]
["Допускается реализация при t +25 °С",null,null,null,"Масса коробки",7,null,null,null,null,null,0]
["Срок годности с даты фасовки 15сут",null,null,null,null,null,null,null,null,null,null,0]
[{"$f":"A2","v":"Картофель прод.позд."},null,null,null,null,null,null,null,null,null,null,0]
[{"$f":"A3","v":"ТР ТС 021/2011; ТР ТС 022/2011"},null,null,null,null,null,null,null,null,null,null,0]
[{"$f":"A4","v":"ГОСТ Р 51808-2013"},null,null,null,null,null,null,null,null,null,null,0]
[{"$f":"A5","v":"Страна;изготовитель: Россия"},null,null,null,null,null,null,null,null,null,null,0]
["АО \"Фортуна\"",null,null,null,null,null,null,null,null,null,null,0]
[0,null,null,null,null,null,null,null,null,null,null,0]
["Дата выработки: Урожай 2017 г.",null,null,null,null,null,null,null,null,null,null,0]
["Дата фасовки: 15.11.2017",null,null,null,null,null,null,null,null,null,null,0]
["Условия хранения: t от 3°до 6°С",null,null,null,null,null,null,null,null,null,null,0]
["Допускается реализация при t +25 °С",null,null,null,null,null,null,null,null,null,null,0]
[{"$f":"A12","v":"Срок годности с даты фасовки 15сут"},null,null,null,null,null,null,null,null,null,null,0]
[{"$f":"A2","v":"Картофель прод.позд."},null,null,null,null,null,null,null,null,null,null,0]
["ТР ТС 021/2011; ТР ТС 022/2011",null,null,null,null,null,null,null,null,null,null,0]
["ГОСТ Р 51808-2013",null,null,null,null,null,null,null,null,null,null,0]
["Страна;изготовитель: Россия",null,null,null,null,null,null,null,null,null,null,0]
["АО \"Фортуна\"",null,null,null,null,null,null,null,null,null,null,0]
[0,null,null,null,null,null,null,null,null,null,null,0]
["Дата выработки: Урожай 2017 г.",null,null,null,null,null,null,null,null,null,null,0]
["Дата фасовки: 15.11.2017",null,null,null,null,null,null,null,null,null,null,0]
["Условия хранения: t от 3°до 6°С",null,null,null,null,null,null,null,null,null,null,0]
["Допускается реализация при t +25 °С",null,null,null,null,null,null,null,null,null,null,0]
["Срок годности с даты фасовки 15сут",null,null,null,null,null,null,null,null,null,null,0]